Cogmind - Beta 14 @@@ ROGUE MODE // 2024.10.22 @ 23:58:48 Player: Destravous Result: Destroyed by Y-54 Guardian with Gatling Laser Performance ------------- Evolutions (3) 1500 Regions Visited (6) 1200 Robots Destroyed (12) 60 Value Destroyed (415) 415 Prototype IDs (2) 40 Alien Tech Used (0) 0 Bonus (200) 200 TOTAL SCORE: 3415 Bonus ------- Entered Garrisons 200 Cogmind --------- Core Integrity 0/700 Matter 232/300 Energy 100/100 System Corruption 0% Temperature Cool (12) Movement Core (50) Location -7/Factory Parts ------- > --- POWER (1) -------- (None) > --- PROPULSION (4) --- (None) > --- UTILITY (6) ------ Improved Signal Interpreter > --- WEAPON (2) ------- Light Assault Rifle > --- INVENTORY (5) ---- Light Treads Light Treads Medium Storage Unit Peak State ------------ > --- POWER ------------ (None) > --- PROPULSION ------- Aluminum Leg Carbon-fiber Leg > --- UTILITY ---------- Small Storage Unit Improved Signal Interpreter > --- WEAPON ----------- Improved Assault Rifle Advanced EMP Blaster > --- INVENTORY -------- Light Treads Light Treads Flight Unit Medium Storage Unit Light Assault Rifle [Rating: 15] Favorites ----------- Power Light Ion Engine Engine Light Ion Engine Propulsion Aluminum Leg Treads Light Treads Leg Aluminum Leg Flight Unit Flight Unit Utility Small Storage Unit Storage Small Storage Unit Processor Improved Signal Interpreter Weapon Light Assault Rifle Energy Gun EM Pulse Gun Ballistic Gun Light Assault Rifle Launcher Advanced EMP Blaster Build | -11 -10 -9 -8 -7 -7 -7 ------- Run | Yrd Mat Mat Mat Fac Gar Fac Slots Evolved 6 | . . 2 2 2 . . Power . | . . . . . . . Propulsion 2 | . . . 1 1 . . Utility 4 | . . 2 1 1 . . Weapon . | . . . . . . . Parts Attached 18 | 1 1 3 7 2 3 1 Power 1 | . 1 . . . . . Engine 1 | . 1 . . . . . Core . | . . . . . . . Reactor . | . . . . . . . Propulsion 10 | . . 2 3 2 3 . Treads 3 | . . . . . 3 . Leg 3 | . . . 3 . . . Wheel . | . . . . . . . Hover . | . . . . . . . Flight 4 | . . 2 . 2 . . Utility 1 | . . 1 . . . . Device . | . . . . . . . Storage . | . . . . . . . Processor 1 | . . 1 . . . . Hackware . | . . . . . . . Protection . | . . . . . . . Artifact . | . . . . . . . Weapon 6 | 1 . . 4 . . 1 Energy Gun . | . . . . . . . Energy Cannon . | . . . . . . . Ballistic Gun 5 | 1 . . 3 . . 1 Ballistic Cannon . | . . . . . . . Launcher 1 | . . . 1 . . . Special Weapon . | . . . . . . . Impact Weapon . | . . . . . . . Slashing Weapon . | . . . . . . . Piercing Weapon . | . . . . . . . Special Melee Weapon . | . . . . . . . Unidentified Prototypes 2 | . . . 2 . . . Parts Lost 11 | . 1 2 6 . 2 . Power 2 | . 1 1 . . . . Propulsion 6 | . . 1 3 . 2 . Utility . | . . . . . . . Weapon 3 | . . . 3 . . . Highest Loss Streak 6 | . 1 2 6 . 2 . To Critical Strikes . | . . . . . . . Average Slot Usage (%) 52 | . 84 46 43 30 14 13 Engine 6 | . 13 8 . . . . Leg 13 | . 28 5 12 . . . Flight 3 | . . 14 . 15 2 . Storage 9 | . 14 11 9 7 1 . Processor 3 | . . 2 9 7 7 7 Ballistic Gun 14 | . 28 5 11 . . 5 Peak Build Rating 15 | 6 6 8 15 8 9 4 Average Rating 6 | 5 5 5 9 7 4 3 On Entrance 5 | 6 6 6 6 4 8 3 Naked Turns . | . . . . . . . Heaviest Build 14 | 11 10 10 14 5 5 1 Greatest Support 40 | 20 20 20 25 9 40 3 Greatest Overweight (x) 3 | . . 1 3 . 1 . Average Overweight (x) . | . . . . . . . Largest Inventory Capacity 8 | 8 8 8 8 8 8 5 Average Capacity 7 | 8 8 8 8 8 5 5 Most Carried 8 | 5 7 8 7 5 4 4 Average Carried 4 | 2 3 7 5 4 3 3 Final Capacity 8 | 8 8 8 8 8 5 5 Final Carried 8 | 2 7 8 6 4 4 3 Class Distribution -------------------- 100% | Mutant Dominant Class ---------------- Mutant | -10/Materials Mutant | -9/Materials Mutant | -8/Materials Mutant | -7/Factory Mutant | -7/Garrison Mutant | -7/Factory Resources | -11 -10 -9 -8 -7 -7 -7 ----------- Run | Yrd Mat Mat Mat Fac Gar Fac Matter Collected 400 | 200 63 . 137 . . . Remotely . | . . . . . . . Salvage Created 441 | . 241 . 200 . . . Parts 28 | . 21 . 7 . . . Haulers Intercepted . | . . . . . . . Recyclers Shooed . | . . . . . . . Parts Field Recycled . | . . . . . . . Retrieved Matter . | . . . . . . . Parts Self-Destructed . | . . . . . . . Prevented . | . . . . . . . Kills | -11 -10 -9 -8 -7 -7 -7 ------- Run | Yrd Mat Mat Mat Fac Gar Fac Combat Hostiles Destroyed 12 | . 8 . 4 . . . Guns 10 | . 8 . 2 . . . AOE 2 | . . . 2 . . . Classes Destroyed 3 | . 2 . 1 . . . Swarmer 4 | . 4 . . . . . Grunt 7 | . 4 . 3 . . . Hunter 1 | . . . 1 . . . Best Kill Streak 4 | . 4 . 3 . . . Combat Bots Only 4 | . 4 . 3 . . . Max Kills in Single Turn 2 | . 1 . 2 . . . Gunslinging . | . . . . . . . Exploded 2 | . . . 2 . . . Melee . | . . . . . . . Uniques/NPCs Destroyed . | . . . . . . . Combat | -11 -10 -9 -8 -7 -7 -7 -------- Run | Yrd Mat Mat Mat Fac Gar Fac Hostile Shots Fired 252 | . 38 30 97 . 84 3 Missed 75 | . 10 9 28 . 27 1 Damage Taken 2479 | . 295 304 1057 . 800 23 Core 1343 | . 92 177 371 . 680 23 Absorbed by Shields 17 | . . . . . 17 . Core Remaining (%) 62 | 100 63 55 32 . . . Volleys Fired 63 | . 24 . 16 . . 23 Largest 2 | . 2 . 2 . . 1 Hottest 59 | . 40 . 59 . . 20 Shots Fired 97 | . 48 . 26 . . 23 Gun 96 | . 48 . 25 . . 23 Cannon . | . . . . . . . Launcher 1 | . . . 1 . . . Special . | . . . . . . . Kinetic 96 | . 48 . 25 . . 23 Thermal . | . . . . . . . Explosive . | . . . . . . . Electromagnetic 1 | . . . 1 . . . Robot Hit Streak 16 | . 11 . 16 . . 9 Robot Miss Streak 4 | . 3 . 2 . . 4 Penetration Max . | . . . . . . . Secondary Targets . | . . . . . . . Shots Hit Robots 60 | . 28 . 19 . . 13 Core Hits 29 | . 17 . 11 . . 1 Critical Kills . | . . . . . . . Critical Parts Destroyed 1 | . . . 1 . . . Critical Strikes 1 | . . . 1 . . . Destroy 1 | . . . 1 . . . Melee Attacks . | . . . . . . . Impact . | . . . . . . . Slashing . | . . . . . . . Piercing . | . . . . . . . Sneak Attacks . | . . . . . . . Combat Hostiles . | . . . . . . . Follow-up Attacks . | . . . . . . . Damage Inflicted 630 | . 235 . 281 . 15 99 Guns 530 | . 235 . 196 . . 99 Cannons . | . . . . . . . Explosions 84 | . . . 84 . . . Melee . | . . . . . . . Ramming 16 | . . . 1 . 15 . Kinetic 530 | . 235 . 196 . . 99 Thermal . | . . . . . . . Explosive . | . . . . . . . Electromagnetic 84 | . . . 84 . . . Impact . | . . . . . . . Slashing . | . . . . . . . Piercing . | . . . . . . . Highest Corruption 1 | . 1 . . . . . Average Corruption 1 | . 1 . . . . . Corruption Purged . | . . . . . . . Corruption Blocked . | . . . . . . . Effects 1 | . 1 . . . . . Data Loss (minor) 1 | . 1 . . . . . Overload Shots . | . . . . . . . Overflow Damage . | . . . . . . . Projectiles . | . . . . . . . Explosions . | . . . . . . . Melee . | . . . . . . . Knockbacks . | . . . . . . . Impact . | . . . . . . . Kinetic . | . . . . . . . Secondary . | . . . . . . . Self-Inflicted Damage 24 | . . . 17 . 7 . Shots 1 | . . . 1 . . . Rammed 2 | . . . 1 . 1 . Targets Rammed 2 | . . . 1 . 1 . Kicked . | . . . . . . . Crushed . | . . . . . . . Highest Temperature 24 | . 9 5 24 . . . Average Temperature 8 | . 6 3 18 . . . Received Heat Transfer 690 | . 90 147 423 . 18 12 Siege Activations . | . . . . . . . Robots Corrupted . | . . . . . . . Combat Hostiles . | . . . . . . . Parts Fried . | . . . . . . . Impact Corruptions . | . . . . . . . Robots Melted . | . . . . . . . Combat Hostiles . | . . . . . . . Parts Melted . | . . . . . . . Heat Transferred . | . . . . . . . Parts Sabotaged . | . . . . . . . Parts Stolen . | . . . . . . . Parts Stripped . | . . . . . . . Power Chain Reactions . | . . . . . . . Alert | -11 -10 -9 -8 -7 -7 -7 ------- Run | Yrd Mat Mat Mat Fac Gar Fac Peak Influence 225 | . 225 194 181 68 102 113 Initial 94 | . . 94 81 68 47 53 Average 76 | . 52 132 115 68 51 65 Maximum Alert Level 1 | . 1 . . . . . Low Security (%) 96 | 100 90 100 100 100 100 100 Level 1 3 | . 9 . . . . . Level 2 . | . . . . . . . Level 3 . | . . . . . . . Level 4 . | . . . . . . . Level 5 . | . . . . . . . High Security . | . . . . . . . Max Security . | . . . . . . . Squads Dispatched 6 | . 2 1 1 1 . 1 Investigation 3 | . 1 . . 1 . 1 Extermination . | . . . . . . . Reinforcement 3 | . 1 1 1 . . . Assault . | . . . . . . . Garrison . | . . . . . . . Intercept . | . . . . . . . Searches Triggered . | . . . . . . . Construction Impeded . | . . . . . . . Haulers Reinforced . | . . . . . . . Active Scanning Responses . | . . . . . . . Cargo Convoy Interrupts . | . . . . . . . Stealth | -11 -10 -9 -8 -7 -7 -7 --------- Run | Yrd Mat Mat Mat Fac Gar Fac Distress Signals 4 | . 2 . 2 . . . Communications Jammed . | . . . . . . . Distress Signals . | . . . . . . . Times Spotted 46 | . 16 7 10 4 8 1 Peak Tracking Total 8 | . 6 8 7 4 5 2 Tactical Retreats 4 | . 1 2 . . 1 . Traps | -11 -10 -9 -8 -7 -7 -7 ------- Run | Yrd Mat Mat Mat Fac Gar Fac Traps Triggered 5 | . 2 . . . 2 1 Indirectly . | . . . . . . . Trap Hack Attempts . | . . . . . . . Triggered . | . . . . . . . Disarmed . | . . . . . . . Reprogrammed . | . . . . . . . Reused . | . . . . . . . Traps Extracted . | . . . . . . . Installed . | . . . . . . . Triggered . | . . . . . . . Machines | -11 -10 -9 -8 -7 -7 -7 ---------- Run | Yrd Mat Mat Mat Fac Gar Fac Machines Disabled 3 | . . . . . . 3 Max in Single Turn 3 | . . . . . . 3 Machines Repaired . | . . . . . . . Machines Dismantled . | . . . . . . . Machines Sabotaged . | . . . . . . . Overloaded Fab Kills . | . . . . . . . Hacking | -11 -10 -9 -8 -7 -7 -7 --------- Run | Yrd Mat Mat Mat Fac Gar Fac Machines Accessed 4 | . 3 . . 1 . . Terminals 3 | . 3 . . . . . Fabricators . | . . . . . . . Repair Stations . | . . . . . . . Recycling Units . | . . . . . . . Scanalyzers . | . . . . . . . Garrison Access 1 | . . . . 1 . . Total Hacks 11 | . 8 . . 3 . . Successful 4 | . 3 . . 1 . . Failed 7 | . 5 . . 2 . . Catastrophic 1 | . 1 . . . . . Database Lockouts . | . . . . . . . Manual 8 | . 8 . . . . . Terminals 8 | . 8 . . . . . Fabricators . | . . . . . . . Repair Stations . | . . . . . . . Recycling Units . | . . . . . . . Scanalyzers . | . . . . . . . Garrison Access 3 | . . . . 3 . . Terminal Hacks . | . . . . . . . Fabricator Hacks . | . . . . . . . Repair Station Hacks . | . . . . . . . Recycling Unit Hacks . | . . . . . . . Scanalyzer . | . . . . . . . Garrison Access Hacks 1 | . . . . 1 . . Unlock Access 1 | . . . . 1 . . Unauthorized Hacks 3 | . 3 . . . . . Terminals 3 | . 3 . . . . . Botnet 3 | . 3 . . . . . Fabricators . | . . . . . . . Repair Stations . | . . . . . . . Recycling Units . | . . . . . . . Scanalyzers . | . . . . . . . Garrison Access . | . . . . . . . Data Cores Recovered . | . . . . . . . Used . | . . . . . . . Hacking Detections 4 | . 3 . . 1 . . Full Trace Events 1 | . . . . 1 . . Feedback Events . | . . . . . . . Feedback Blocked . | . . . . . . . Robot Schematics Acquired . | . . . . . . . Robots Built . | . . . . . . . Authchips . | . . . . . . . Time . | . . . . . . . Total Robot Build Rating . | . . . . . . . Part Schematics Acquired . | . . . . . . . Parts Built . | . . . . . . . Authchips . | . . . . . . . Time . | . . . . . . . Total Part Build Rating . | . . . . . . . Parts Repaired . | . . . . . . . Time . | . . . . . . . Parts Recycled . | . . . . . . . Recycled Matter . | . . . . . . . Retrieved Matter . | . . . . . . . Retrieved Components . | . . . . . . . Parts Scanalyzed . | . . . . . . . Part Schematics Acquired . | . . . . . . . Parts Damaged . | . . . . . . . Bothacking | -11 -10 -9 -8 -7 -7 -7 ------------ Run | Yrd Mat Mat Mat Fac Gar Fac Used RIF Installer . | . . . . . . . Robots Hacked . | . . . . . . . Non-combat . | . . . . . . . Combat . | . . . . . . . Robot Hacks Applied . | . . . . . . . Relay Couplers Released . | . . . . . . . Fabnet Peak Effective % . | . . . . . . . Robots Rewired . | . . . . . . . Allies Hacked . | . . . . . . . Hacks Repelled . | . . . . . . . Allies | -11 -10 -9 -8 -7 -7 -7 -------- Run | Yrd Mat Mat Mat Fac Gar Fac Total Allies . | . . . . . . . Largest Group . | . . . . . . . Highest-Rated Group . | . . . . . . . Highest-Rated Ally . | . . . . . . . Total Orders . | . . . . . . . Ally Attacks . | . . . . . . . Total Damage . | . . . . . . . Kills . | . . . . . . . Allies Corrupted . | . . . . . . . Allies Melted . | . . . . . . . Intel | -11 -10 -9 -8 -7 -7 -7 ------- Run | Yrd Mat Mat Mat Fac Gar Fac Robot Analysis Total . | . . . . . . . Derelict Logs Recovered . | . . . . . . . Drone Launches . | . . . . . . . Drone Recoveries . | . . . . . . . Exploration | -11 -10 -9 -8 -7 -7 -7 ------------- Run | Yrd Mat Mat Mat Fac Gar Fac Turns Passed 911 | 6 357 131 143 86 83 105 Spaces Moved 1039 | 2 223 227 79 246 138 124 Core 270 | . . . 23 . 123 124 Treads 3 | . . . . . 3 . Legs 305 | 2 223 24 56 . . . Wheels . | . . . . . . . Hover . | . . . . . . . Flight 461 | . . 203 . 246 12 . Fastest Speed 34 | 120 120 37 100 34 34 50 Average Speed 67 | 120 120 54 115 34 52 50 Slowest Speed 200 | 120 120 120 200 34 160 50 Overloaded Moves . | . . . . . . . Propulsion Burnouts . | . . . . . . . Robots Hopped 3 | . . 3 . . . . Cave-ins Triggered . | . . . . . . . Exploration Rate (%) 20 | 2 50 29 15 10 34 5 Regions Visited 6 Branch Regions . Pre-discovered Areas . | . . . . . . . Known Exits Taken 3 | . . 1 1 1 . . Unknown Exits Taken 2 | 1 1 . . . . . Scrap Searched . | . . . . . . . Spaces Dug . | . . . . . . . Terrain Destroyed . | . . . . . . . Melee . | . . . . . . . Projectile . | . . . . . . . AOE . | . . . . . . . Terrain Rammed . | . . . . . . . Walls Destroyed . | . . . . . . . Machines Disabled . | . . . . . . . Actions | -11 -10 -9 -8 -7 -7 -7 --------- Run | Yrd Mat Mat Mat Fac Gar Fac Total 1167 | 8 274 233 106 248 150 148 Wait 22 | . 21 . 1 . . . Move 1028 | 1 222 220 78 246 137 124 Hop 3 | . . 3 . . . . Pick Up 11 | 1 6 2 2 . . . Fast Attach 2 | . . 1 1 . . . Attach 13 | 1 1 . 5 2 3 1 Detach 6 | . . 2 1 . 3 . Swap 3 | . . 2 1 . . . Drop 9 | 5 . 3 . . 1 . Fire 63 | . 24 . 16 . . 23 Melee . | . . . . . . . Ram 2 | . . . 1 . 1 . Kick . | . . . . . . . Crush . | . . . . . . . Escape Stasis 5 | . . . . . 5 . Rewire . | . . . . . . . Trap . | . . . . . . . Miscellaneous . | . . . . . . . Route ------- -11/Scrapyard -10/Materials -9/Materials -8/Materials -7/Factory -7/Garrison -7/Factory History --------- Turn | Location | Event 3 | -11/Scrapyard | Discovered new exit (range 1) 7 | -11/Scrapyard | Entered Materials 312 | -10/Materials | Build established: Mutant 359 | -10/Materials | Discovered new exit (range 5) 364 | -10/Materials | Entered another Materials area 364 | -9/Materials | Evolved 2 slots: Utility x2 493 | -9/Materials | Discovered new exit (range 3) 494 | -9/Materials | Identified exit to Materials 495 | -9/Materials | Entered another Materials area 495 | -8/Materials | Evolved 2 slots: Propulsion x1, Utility x1 613 | -8/Materials | Discovered new exit (range 16) 624 | -8/Materials | Core integrity fell below 50% 637 | -8/Materials | Identified exit to Factory 638 | -8/Materials | Entered Factory 638 | -7/Factory | Evolved 2 slots: Propulsion x1, Utility x1 646 | -7/Factory | Lost 6 parts (3n3w) 724 | -7/Factory | Identified exit to Garrison 724 | -7/Factory | Entered Garrison 730 | -7/Garrison | Triggered checkpoint 750 | -7/Garrison | Triggered checkpoint 761 | -7/Garrison | Core integrity fell below 50% 798 | -7/Garrison | Triggered checkpoint 800 | -7/Garrison | Core integrity fell below 20% 802 | -7/Garrison | Discovered new exit (range 10) 806 | -7/Garrison | Identified exit to Factory 807 | -7/Garrison | Entered Factory 912 | -7/Factory | Destroyed by Y-54 Guardian with Gatling Laser Last Messages --------------- 00767_ A bubble of rippling energy engulfs the area. 00767_ Field strength at 94. 00770_ Field strength at 50. 00771_ Field strength at 6. 00771_ Stasis field depleted. 00776_ S-27 Virus destroyed. 00798_ Beams of light sweep through the air. An alarm sounds. 00802_ EXIT=FOUND 00806_ EXIT=IDENTIFIED: FACTORY LOCATION=FACTORY GOAL=ESCAPE 00890_ Destroyed Mining Laser. 00894_ Triggered Alarm Trap. 00894_ An alarm sounds. 00894_ ALERT: Alarm triggered, dispatching investigation squad. 00910_ ALERT: All DSF locations entering lockdown mode. Map ----- +----------------------------------------------------+ | ?????????????????????????????????????????????????? | | ?????????????????????????????????????????????????? | | ?????????????????????????????????????????????????? | | ?????????????????????????????????????????????????? | | ?????????????????????????????????????????????????? | | ?????????????????????????????????????????????????? | | ?????????????????????????????????????????????????? | | ?????????????????????????????????????????????????? | | ?????????????????????????????????????????????????? | | ?????????????????????????????????????????????????? | | ?????????????????????????????????????????????????? | | ?????????????????????????????????????????????????? | | ????????????????????????#+#??????????????????????? | | ???????????????????????? ??????????????????????? | | ???????????????????????? ??????????????????????? | | ???????????????????????? ??????????????????????? | | ???????????????????????? ??????????????????????? | | ???????????????????????? Y ??????????????????????? | | ????????????????????????# #??????????????????????? | | ????????????????????????# #??????????????????????? | | ???????????????????????? #??????????????????????? | | ????????????????????????# #??????????????????????? | | ????????????????????????# #??????????????????????? | | ????????????????????????# #??????????????????????? | | ????????????????????????# #??????????????????????? | | ????????????????????????#@#??????????????????????? | | ??????????????????# ????# #??????????????????????? | | ??????????????????# ????# #??????????????????????? | | ?????????????######+#####+#??????????????????????? | | ?????????????# #??????????????????????? | | ?????????????# #??????????????????????? | | ?????????????# #??????????????????????? | | ?????????????# #??????????????????????? | | ?????????????# #??????????????????????? | | ?????????????# #??????????????????????? | | ?????????????# #??????????????????????? | | ?????????????# #??????????????????????? | | ?????????????# #??????????????????????? | | ?????????????# #??????????????????????? | | ?????????????# #??????????????????????? | | ?????????????# #??????????????????????? | | #####+##############/##########??????????????????? | | ??????????????? | | ??????????????? | | ??????????????? | | ???????????????? | | ???????????????? | | ###+##### ????????????????? | | #? ???# ???????????????? | | #? ???# ????????????????? | +----------------------------------------------------+ Best States ------------- Heat Dissipation 34 Energy Generation 10 Energy Capacity 125 Matter Stores 300 Matter Capacity 300 Sight Range 16 Terrain Scan Density 10 Evasion (%) 63 Recoil Reduction 2 Item Schematics ----------------- None Robot Schematics ------------------ None Fabricated ------------ Nothing Alien Tech Used ----------------- None Achievements -------------- None Challenges ------------ None Game ------ Seed AerolevMobileChronowheel Manual? 0 Play Time 00:17:53 Cumulative 286.0 hours Start 2024.10.22 @ 23:40:37 End 2024.10.22 @ 23:58:48 Sessions 1 Manual Loads 0 Difficulty Rogue Special Mode None Game No. 85 Rogue 80 Adventurer 5 Explorer 0 Win Type - Total 8 Types 7/0/0/0/0/1/0/0/0 Lore% 32 Gallery% 56 Achievement% 48 Wizard Run 0 Options --------- Layout 1 ASCII 0 Keyboard 0 Movement Mouse Keybinds 0 Fullscreen 2 Font 24/Smallcaps Map View 50x35 Zoom Use 0% Tactical HUD 1 Map Filters NONE Filters NONE Steam 1 RUN: 126eeb31-d7d5-44d6-a295-3670c9af3628